fUSD/lending_fUSD_20260224
["ID","MTS","AMOUNT","RATE_DAILY","PERIOD"]
[406527849,1771913442556,-500.0,0.00013698,2]
[406527850,1771913442565,-500.0,0.00013698,2]
[406527851,1771913442574,-500.0,0.00013698,2]
[406527852,1771913442583,-500.0,0.00013698,2]
[406527853,1771913442592,-500.0,0.00013698,2]
[406527854,1771913442601,-500.0,0.00013698,2]
[406527855,1771913442611,-500.0,0.00013698,2]
[406527856,1771913442620,-500.0,0.00013698,2]
[406527857,1771913442629,-500.0,0.00013698,2]
[406527858,1771913442638,-500.0,0.00013698,2]
[406527859,1771913442647,-500.0,0.00013698,2]
[406527860,1771913442657,-500.0,0.00013698,2]
[406527861,1771913442666,-500.0,0.00013698,2]
[406527862,1771913442675,-500.0,0.00013698,2]
[406527863,1771913442684,-500.0,0.00013698,2]
[406527864,1771913442694,-500.0,0.00013698,2]
[406527865,1771913442703,-500.0,0.00013698,2]
[406527866,1771913442713,-500.0,0.00013698,2]
[406527867,1771913442722,-500.0,0.00013698,2]
[406527868,1771913442731,-500.0,0.00013698,2]
[406527869,1771913442740,-500.0,0.00013698,2]
[406527870,1771913442749,-500.0,0.00013698,2]
[406527879,1771913442944,-500.0,0.00013698,2]
[406527880,1771913442954,-500.0,0.00013698,2]
[406527881,1771913442964,-500.0,0.00013698,2]
[406527882,1771913442973,-500.0,0.00013698,2]
[406527883,1771913442983,-500.0,0.00013698,2]
[406527884,1771913442992,-500.0,0.00013698,2]
[406527885,1771913443002,-500.0,0.00013698,2]
[406527886,1771913443011,-500.0,0.00013698,2]
[406527887,1771913443021,-604.80928583,0.00013698,2]
[406527888,1771913443030,-500.0,0.00013698,2]
[406527889,1771913443042,-500.0,0.00013698,2]
[406527890,1771913443052,-500.0,0.00013698,2]
[406527891,1771913443062,-500.0,0.00013698,2]
[406527892,1771913443072,-500.0,0.00013698,2]
[406527893,1771913443082,-500.0,0.00013698,2]
[406527894,1771913443092,-500.0,0.00013698,2]
[406527895,1771913443102,-500.0,0.00013698,2]
[406527896,1771913443112,-496.78099408,0.00013698,2]
[406527897,1771913443122,-500.0,0.00013698,2]
[406527898,1771913443132,-500.0,0.00013698,2]
[406527899,1771913443142,-500.0,0.00013698,2]
[406527900,1771913443152,-500.0,0.00013698,2]
[406527901,1771913443161,-500.0,0.00013698,2]
[406527902,1771913443171,-500.0,0.00013698,2]
[406527904,1771913443180,-500.0,0.00013698,2]
[406527906,1771913443190,-500.0,0.00013698,2]
[406527907,1771913443199,-500.0,0.00013698,2]
[406527908,1771913443209,-180.41605174,0.00013698,2]
[406527910,1771913443218,-500.75,0.00013698,2]
[406527912,1771913443228,-500.75,0.00013698,2]
[406527913,1771913443238,-500.75,0.00013698,2]
[406527915,1771913443247,-500.75,0.00013698,2]
[406527916,1771913443256,-500.75,0.00013698,2]
[406527917,1771913443267,-500.75,0.00013698,2]
[406527918,1771913443276,-500.75,0.00013698,2]
[406527920,1771913443287,-500.75,0.00013698,2]
[406527921,1771913443300,-500.75,0.00013698,2]
[406527922,1771913443309,-500.75,0.00013698,2]
[406527923,1771913443319,-500.75,0.00013698,2]
[406527924,1771913443329,-500.75,0.00013698,2]
[406527925,1771913443339,-500.75,0.00013698,2]
[406527926,1771913443348,-500.75,0.00013698,2]
[406527927,1771913443358,-500.75,0.00013698,2]
[406527928,1771913443369,-500.75,0.00013698,2]
[406527929,1771913443380,-500.0,0.00013698,2]
[406527930,1771913443390,-648.89211194,0.00013698,2]
[406527931,1771913443399,-500.0,0.00013698,2]
[406527932,1771913443410,-500.0,0.00013698,2]
[406527933,1771913443420,-500.0,0.00013698,2]
[406527934,1771913443429,-500.0,0.00013698,2]
[406527935,1771913443439,-433.85931145,0.00013698,2]
[406527936,1771913443448,-500.0,0.00013698,2]
[406527937,1771913443457,-500.0,0.00013698,2]
[406527938,1771913443467,-500.0,0.00013698,2]
[406527939,1771913443475,-500.0,0.00013698,2]
[406527940,1771913443485,-500.0,0.00013698,2]
[406527941,1771913443494,-500.0,0.00013698,2]
[406527942,1771913443503,-500.0,0.00013698,2]
[406527943,1771913443512,-500.0,0.00013698,2]
[406527944,1771913443521,-500.0,0.00013698,2]
[406527945,1771913443531,-500.0,0.00013698,2]
[406527946,1771913443541,-500.0,0.00013698,2]
[406527947,1771913443550,-500.0,0.00013698,2]
[406527948,1771913443560,-500.0,0.00013698,2]
[406527949,1771913443570,-500.0,0.00013698,2]
[406527950,1771913443579,-500.0,0.00013698,2]
[406527951,1771913443589,-500.0,0.00013698,2]
[406527952,1771913443598,-500.0,0.00013698,2]
[406527953,1771913443607,-509.02499655,0.00013698,2]
[406527954,1771913443617,-500.0,0.00013698,2]
[406527955,1771913443626,-500.0,0.00013698,2]
[406527956,1771913443635,-500.0,0.00013698,2]
[406527957,1771913443645,-500.0,0.00013698,2]
[406527958,1771913443654,-500.0,0.00013698,2]
[406527959,1771913443663,-500.0,0.00013698,2]
[406527960,1771913443672,-500.0,0.00013698,2]
[406527961,1771913443682,-500.0,0.00013698,2]
[406527962,1771913443691,-500.0,0.00013698,2]
[406527963,1771913443700,-500.0,0.00013698,2]
[406527964,1771913443710,-500.0,0.00013698,2]
[406527965,1771913443719,-500.0,0.00013698,2]
[406527966,1771913443728,-500.0,0.00013698,2]
[406527967,1771913443737,-500.0,0.00013698,2]
[406527968,1771913443747,-505.72642802,0.00013698,2]
[406527969,1771913443757,-500.0,0.00013698,2]
[406527970,1771913443766,-500.0,0.00013698,2]
[406527971,1771913443775,-500.0,0.00013698,2]
[406527972,1771913443785,-500.0,0.00013698,2]
[406527973,1771913443795,-500.0,0.00013698,2]
[406527974,1771913443804,-500.0,0.00013698,2]
[406527975,1771913443813,-500.0,0.00013698,2]
[406527976,1771913443823,-500.0,0.00013698,2]
[406527977,1771913443832,-500.0,0.00013698,2]
[406527978,1771913443841,-500.0,0.00013698,2]
[406527979,1771913443851,-500.0,0.00013698,2]
[406527980,1771913443860,-500.0,0.00013698,2]
[406527982,1771913443871,-500.0,0.00013698,2]
[406527983,1771913443879,-500.0,0.00013698,2]
[406527984,1771913443889,-505.3008994,0.00013698,2]
[406527985,1771913443898,-500.0,0.00013698,2]
[406527986,1771913443907,-500.0,0.00013698,2]
[406527987,1771913443916,-500.0,0.00013698,2]
[406527988,1771913443926,-500.0,0.00013698,2]
[406527989,1771913443936,-500.0,0.00013698,2]
[406527990,1771913443945,-500.0,0.00013698,2]
[406527991,1771913443955,-500.0,0.00013698,2]
[406527992,1771913443965,-500.0,0.00013698,2]
[406527993,1771913443975,-500.0,0.00013698,2]
[406527994,1771913443985,-500.0,0.00013698,2]
[406527995,1771913443994,-500.0,0.00013698,2]
[406527996,1771913444004,-500.0,0.00013698,2]
[406527997,1771913444013,-500.0,0.00013698,2]
[406527998,1771913444023,-500.0,0.00013698,2]
[406527999,1771913444032,-500.0,0.00013698,2]
[406528000,1771913444042,-500.0,0.00013698,2]
[406528001,1771913444052,-200.0,0.00013699,2]
[406528002,1771913444061,-500.0,0.00013699,2]
[406528003,1771913444071,-164.16786887,0.00013699,2]
[406528004,1771913444081,-500.0,0.00013699,2]
[406528005,1771913444090,-162.13031906,0.00013699,2]
[406528006,1771913444099,-462.25622606,0.00013699,2]
[406528007,1771913444108,-500.0,0.00013699,2]
[406528008,1771913444118,-501.16839178,0.00013699,2]
[406528009,1771913444126,-500.0,0.00013699,2]
[406528010,1771913444136,-500.0,0.00013699,2]
[406528011,1771913444145,-500.0,0.00013699,2]
[406528012,1771913444154,-599.206441,0.00013699,2]
[406528013,1771913444164,-241.86216209,0.00013699,2]
[406528014,1771913444174,-170.38160206,0.00013699,2]
[406528015,1771913444184,-168.61283304,0.00013699,2]
[406528016,1771913444194,-304.38005979,0.00013699,2]
[406528017,1771913444203,-503.17329319,0.00013699,2]
[406528018,1771913444212,-500.0,0.00013699,2]
[406528019,1771913444222,-500.0,0.00013699,2]
[406528020,1771913444231,-500.0,0.00013699,2]
[406528021,1771913444240,-9999.99,0.00013699,2]
[406528022,1771913444250,-29999.99,0.00013699,2]
[406528024,1771913444259,-1205.22,0.00013699,2]
[406528025,1771913444268,-557.93,0.00013699,2]
[406528026,1771913444277,-557.93,0.00013699,2]
[406528027,1771913444287,-557.93,0.00013699,2]
[406528028,1771913444301,-557.93,0.00013699,2]
[406528029,1771913444311,-558.09860285,0.00013699,2]
[406528030,1771913444324,-500.0,0.00013759,2]
[406528031,1771913444335,-433.0,0.0001378,2]
[406528032,1771913444344,-587.0,0.0001394,2]
[406528033,1771913444354,-215.42973367,0.00013971,2]
[406528034,1771913444363,-2351.0,0.00013984,2]
[406528035,1771913444375,-500.0,0.00014033,2]
[406528036,1771913444385,-150.0,0.00014071,2]
[406528037,1771913444395,-1001.80624812,0.00014168,2]
[406528038,1771913444404,-506.41000984,0.00014168,2]
[406528039,1771913444413,-508.95319751,0.00014168,2]
[406528040,1771913444423,-1006.65948462,0.00014168,2]
[406528041,1771913444432,-1151.19706606,0.00014225,2]
[406528042,1771913444441,-501.53221813,0.00014247,2]
[406528043,1771913444450,-1000.0,0.00014247,2]
[406528044,1771913444459,-1099.53316827,0.00014247,2]
[406528045,1771913444468,-1000.0,0.00014247,2]
[406528046,1771913444477,-1000.0,0.00014247,2]
[406528047,1771913444487,-500.0,0.00014247,2]
[406528048,1771913444496,-1000.0,0.00014247,2]
[406528049,1771913444506,-1000.0,0.00014247,2]
[406528050,1771913444515,-193.71551848,0.00014247,2]
[406528051,1771913444525,-490.04415408,0.00014307,2]
[406528052,1771913444534,-22385.93454073,0.00014327,2]
[406528053,1771913444543,-27555.96599931,0.00014327,2]
[406528054,1771913444552,-482.62224521,0.00014504,2]
[406528055,1771913444562,-500.0,0.00014504,2]
[406528056,1771913444572,-500.0,0.00014504,2]
[406528057,1771913444582,-500.75,0.00014504,2]
[406528058,1771913444591,-605.01315196,0.00014504,2]
[406528059,1771913444600,-500.0,0.00014504,2]
[406528060,1771913444610,-151.0,0.00014634,2]
[406528061,1771913444619,-151.0,0.00014634,2]
[406528062,1771913444628,-151.0,0.00014634,2]
[406528063,1771913444637,-151.0,0.00014634,2]
[406528064,1771913444646,-1503.05357398,0.00014795,2]
[406528065,1771913444656,-1500.0,0.00014795,2]
[406528066,1771913444665,-888.44252469,0.00014795,2]
[406528067,1771913444674,-1500.0,0.00014795,2]
[406528068,1771913444684,-1505.93563056,0.00014795,2]
[406528069,1771913444693,-1847.79,0.00014853,2]
[406528070,1771913444703,-482.62224521,0.00014866,2]
[406528071,1771913444712,-176.18400318,0.000149,2]
[406528072,1771913444722,-150.0,0.00015029,2]
[406528073,1771913444732,-22385.93454073,0.00015041,2]
[406528074,1771913444741,-27555.96599931,0.00015041,2]
[406528075,1771913444751,-736.0,0.00015052,2]
[406528076,1771913444760,-160.0,0.00015085,2]
[406528077,1771913444770,-173.87087054,0.00015085,2]
[406528078,1771913444779,-516.0,0.0001512,2]
[406528079,1771913444789,-1151.19706606,0.00015143,2]
[406528080,1771913444798,-371254.9785337,0.00015194,2]
[406528081,1771913444808,-482.62224521,0.00015229,2]
[406528082,1771913444818,-250.0,0.00015257,2]
[406528083,1771913444828,-500.0,0.00015273,2]
[406528084,1771913444837,-500.0,0.00015273,2]
[406528085,1771913444846,-823.0,0.00015309,2]
[406528086,1771913444856,-2000.0,0.00015342,2]
[406528087,1771913444867,-755.82806005,0.00015342,2]
[406528088,1771913444876,-3292.0,0.00015382,2]
[406528089,1771913444886,-482.62224521,0.00015592,2]
[406528090,1771913444895,-151.0,0.00015593,2]
[406528091,1771913444905,-151.0,0.00015593,2]
[406528092,1771913444914,-198.0,0.00015593,2]
[406528093,1771913444924,-358.5827041,0.00015706,2]
[406528094,1771913444933,-1040.0,0.0001571,2]
[406528095,1771913444942,-618.0,0.0001571,2]
[406528096,1771913444952,-1362.51,0.0001571,2]
[406528097,1771913444961,-1277.0,0.0001571,2]
[406528098,1771913444971,-1333.13,0.00015717,2]
[406528099,1771913444980,-5980.0,0.00015717,2]
[406528100,1771913444990,-2455.0,0.00015717,2]
[406528101,1771913444999,-920.0,0.00015717,2]
[406528102,1771913445009,-5790.0,0.00015745,2]
[406528103,1771913445018,-22385.93454073,0.00015756,2]
[406528104,1771913445028,-27555.96599931,0.00015756,2]
[406528105,1771913445038,-796.51670996,0.0001589,2]
[406528106,1771913445047,-482.62224521,0.00015954,2]
[406528107,1771913445056,-150.0,0.00016,2]
[406528108,1771913445066,-150.0,0.00016,2]
[406528109,1771913445075,-150.0,0.00016,2]
[406528110,1771913445084,-380.32235674,0.00016,2]
[406528111,1771913445094,-1151.19706606,0.00016062,2]
[406528112,1771913445103,-380.32235674,0.000161,2]
[406528113,1771913445113,-9999.99,0.00016116,2]
[406528114,1771913445122,-380.32235674,0.000162,2]
[406528115,1771913445132,-150.0,0.00016201,2]
[406528116,1771913445141,-482.62224521,0.00016317,2]
[406528117,1771913445151,-325.14,0.00016432,2]
[406528118,1771913445160,-20000.0,0.00016438,2]
[406528119,1771913445169,-1252.0,0.00016439,2]
[406528120,1771913445178,-22385.93454073,0.00016471,2]
[406528121,1771913445188,-27555.96599931,0.00016471,2]
[406528122,1771913445196,-482.62224521,0.00016679,2]
[406528123,1771913445207,-200.0,0.00016792,2]
[406528124,1771913445216,-1152.0,0.00016814,2]
[406528125,1771913445225,-4609.0,0.0001692,2]
[406528126,1771913445235,-6623.03809716,0.00016945,2]
[406528127,1771913445245,-500.0,0.00016999,2]
[406528128,1771913445253,-743.50770149,0.00016999,2]
[406528129,1771913445313,-500.0,0.00016999,2]
[406528130,1771913445322,-500.0,0.00016999,2]
[406528131,1771913445332,-500.0,0.00016999,2]
[406528132,1771913445341,-250.0,0.00016999,2]
[406528133,1771913445350,-500.0,0.00016999,2]
[406528134,1771913445360,-257.5744131,0.00016999,2]
[406528135,1771913445370,-500.0,0.00016999,2]
[406528136,1771913445379,-500.0,0.00016999,2]
[406528137,1771913445388,-500.0,0.00016999,2]
[406528138,1771913445397,-500.0,0.00016999,2]
[406528139,1771913445407,-500.0,0.00016999,2]
[406528140,1771913445416,-500.0,0.00016999,2]
[406528141,1771913445425,-3001.374,0.00017,2]
[406528142,1771913445435,-205.161,0.00017,2]
[406528143,1771913445444,-482.62224521,0.00017042,2]
[406528144,1771913445454,-507.72635797,0.0001712,5]
[406528145,1771913445463,-716.0,0.00017151,2]
[406528146,1771913445472,-22385.93454073,0.00017185,2]
[406528147,1771913445482,-371254.9785337,0.00017199,2]
[406528148,1771913445491,-350.0,0.00017233,2]
[406528149,1771913445500,-482.62224521,0.00017405,2]
[406528150,1771913445509,-308.24,0.00017443,2]
[406528151,1771913445518,-516.0,0.00017523,4]
[406528152,1771913445528,-771.01748645,0.00017547,2]
[406528153,1771913445537,-1279.27657175,0.0001764,2]
[406528154,1771913445547,-482.74499898,0.00017696,2]
[406528155,1771913445556,-2779.9111345,0.00017697,2]
[406528156,1771913445566,-482.62224521,0.00017767,2]
[406528157,1771913445575,-6562.937436,0.00017776,7]
[406528158,1771913445585,-500.0,0.00017796,2]
[406528159,1771913445595,-500.0,0.00017796,2]
[406528160,1771913445604,-574.86865068,0.00017796,2]
[406528161,1771913445613,-500.75,0.00017796,2]
[406528162,1771913445623,-500.75,0.00017796,2]
[406528163,1771913445631,-500.0,0.00017796,2]
[406528164,1771913445641,-294645.768,0.00017797,2]
[406528165,1771913445650,-32875.3991,0.00017797,2]
[406528166,1771913445659,-158.772003,0.00017797,2]
[406528167,1771913445668,-158.772003,0.00017797,2]
[406528168,1771913445677,-158.772003,0.00017797,2]
[406528169,1771913445686,-158.772003,0.00017797,2]
[406528170,1771913445695,-482.74499897,0.00017798,2]
[406528171,1771913445704,-273.66332509,0.00017799,3]
[406528172,1771913445714,-2779.9111345,0.00017799,2]
[406528173,1771913445723,-500.0,0.00017807,2]
[406528174,1771913445732,-500.0,0.00017807,2]
[406528175,1771913445741,-155.12855329,0.00017807,2]
[406528176,1771913445750,-500.0,0.00017807,2]
[406528177,1771913445759,-500.0,0.00017807,2]
[406528178,1771913445768,-594.51155404,0.00017807,2]
[406528179,1771913445778,-800.0,0.00017808,2]
[406528180,1771913445787,-198521.73986779,0.0001781,2]
[406528181,1771913445797,-185.18847432,0.00017829,2]
[406528182,1771913445806,-500.75,0.00017829,2]
[406528183,1771913445818,-500.75,0.00017829,2]
[406528184,1771913445827,-500.75,0.00017829,2]
[406528185,1771913445836,-500.75,0.00017829,2]
[406528186,1771913445845,-500.81040762,0.00017829,2]
[406528187,1771913445854,-25000.0,0.00017882,3]
[406528188,1771913445863,-25000.0,0.00017891,3]
[406528189,1771913445872,-159614.4549697,0.00017897,2]
[406528190,1771913445881,-25000.0,0.000179,3]
[406528191,1771913445890,-173.87087054,0.000179,3]
[406528192,1771913445899,-272.55053757,0.000179,2]
[406528193,1771913445908,-22385.93454073,0.000179,2]
[406528194,1771913445918,-273.66332509,0.000179,3]
[406528195,1771913445927,-164.93017815,0.000179,2]
[406528196,1771913445936,-2779.9111345,0.000179,2]
[406528197,1771913445945,-482.74499897,0.000179,2]
[406528198,1771913445955,-1688.0,0.00017954,2]
[406528199,1771913445964,-150.0,0.00017974,2]
[406528200,1771913445974,-155.613,0.00017999,2]
[406528201,1771913445983,-815.58401786,0.00017999,2]
[406528202,1771913445992,-150.0,0.00017999,2]
[406528203,1771913446001,-210.94677836,0.00017999,2]
[406528204,1771913446010,-666.0,0.00017999,2]
[406528205,1771913446020,-309.11765045,0.00017999,2]
[406528206,1771913446030,-113161.85416884,0.00018,2]
[406528207,1771913446140,-20426.77845928,0.00018,2]
[406528208,1771913446150,-606.23261478,0.00018,2]
[406528209,1771913446242,-4478.00151961,0.00017185,2]
[406528210,1771913446306,-304.66602214,0.00017185,2]
[406528211,1771913446336,-8647.66999999,0.00017185,2]
[406528213,1771913470041,500.0,0.00011447,2]
[406528214,1771913528088,9500.01,7.945e-05,2]
[406528215,1771913528110,10000.01,7.945e-05,2]
[406528216,1771913528131,916.602158,7.945e-05,2]
[406528217,1771913536689,678.23657423,0.000108,2]
[406528218,1771913537030,500.0,0.000108,2]
[406528219,1771913538441,500.0,0.000108,2]
[406528220,1771913538918,500.0,0.000108,2]
[406528221,1771913542265,930.66983953,0.000108,2]
[406528222,1771913543131,500.0,0.000108,2]
[406528223,1771913543466,500.0,0.000108,2]
[406528224,1771913543989,893.25770071,0.000108,2]
[406528225,1771913549260,751.95169886,0.000108,2]
[406528226,1771913550008,500.0,0.000108,2]
[406528227,1771913620217,550.39,7.5e-05,2]
[406528228,1771913627117,500.0,0.00011447,2]
[406528229,1771913852488,500.0,0.000108,2]
[406528230,1771913853136,500.0,0.000108,2]
[406528231,1771913853653,500.0,0.000108,2]
[406528232,1771913854144,500.0,0.000108,2]
[406528233,1771913854587,507.70307174,0.000108,2]
[406528234,1771913854644,500.0,0.000108,2]
[406528235,1771913855026,502.76700379,0.000108,2]
[406528236,1771913855103,500.0,0.000108,2]
[406528237,1771913855579,655.244832,0.000108,2]
[406528239,1771914335062,160.0,0.00011,2]
[406528242,1771914352833,10000.01,9.95e-05,2]
[406528243,1771914352855,10000.01,9.95e-05,2]
[406528244,1771914352877,10000.01,9.95e-05,2]
[406528245,1771914352900,10000.01,9.95e-05,2]
[406528246,1771914352924,5000.01,9.95e-05,2]
[406528247,1771914352947,17941.53136668,9.95e-05,2]
[406528248,1771914352968,10000.0,9.95e-05,2]
[406528249,1771914352993,24293.33482197,9.95e-05,2]
[406528265,1771914579656,1453.23,0.00011537,2]
[406528280,1771914632236,-2214.77332447,0.00011699,2]
[406528283,1771914632248,-834.75876838,0.00011699,2]
[406528286,1771914632258,-762.13460407,0.00011699,2]
[406528289,1771914632359,-644.71052742,0.00011699,2]
[406528290,1771914632370,-1131.66823526,0.00011699,2]
[406528291,1771914632381,-1260.6345404,0.00011699,2]
[406528292,1771914632390,-283.59213513,0.00011742,2]
[406528293,1771914632418,-916.40786487,0.00011742,2]
[406528294,1771914632427,-2591.16709504,0.00011743,2]
[406528295,1771914632436,-250.0,0.00011787,2]
[406528296,1771914632445,-171.869698,0.00012512,2]
[406528297,1771914632454,-1500.0,0.00012787,2]
[406528298,1771914632464,-250.0,0.00012869,2]
[406528299,1771914632472,-5000.0,0.00012869,2]
[406528301,1771914632481,-250.0,0.00012869,2]
[406528303,1771914632490,-1680.0,0.00012916,2]
[406528305,1771914632499,-1565.0,0.0001296,2]
[406528307,1771914632508,-432.07639936,0.00012962,2]
[406528309,1771914632517,-150.0,0.00012972,2]
[406528311,1771914632526,-907.4487077,0.00012973,2]
[406528313,1771914632535,-410.32811376,0.00012973,2]
[406528316,1771914632544,-507.99216416,0.00012973,2]
[406528319,1771914632553,-1188.89320604,0.00012973,2]
[406528321,1771914632562,-1304.0,0.00012979,2]
[406528325,1771914632572,-208.0,0.00012979,2]
[406528328,1771914632581,-560.0,0.00013005,2]
[406528329,1771914632590,-500.0,0.00013018,2]
[406528332,1771914632599,-325.28167795,0.00013018,2]
[406528333,1771914632608,-500.0,0.00013018,2]
[406528335,1771914632617,-305.81114339,0.00013018,2]
[406528337,1771914632626,-500.0,0.00013018,2]
[406528339,1771914632638,-500.0,0.00013018,2]
[406528341,1771914632647,-500.0,0.00013018,2]
[406528344,1771914632656,-500.0,0.00013018,2]
[406528346,1771914632665,-511.10672883,0.00013018,2]
[406528347,1771914632674,-261.02829057,0.00013018,2]
[406528350,1771914632685,-500.0,0.00013018,2]
[406528352,1771914632694,-500.0,0.00013018,2]
[406528354,1771914632703,-500.0,0.00013018,2]
[406528355,1771914632712,-500.0,0.00013018,2]
[406528357,1771914632722,-721.96201828,0.00013018,2]
[406528359,1771914632730,-500.0,0.00013018,2]
[406528361,1771914632739,-721.96201828,0.00013018,2]
[406528363,1771914632748,-500.0,0.00013018,2]
[406528366,1771914632757,-500.0,0.00013018,2]
[406528367,1771914632767,-721.96201828,0.00013018,2]
[406528368,1771914632776,-490.12076469,0.00013018,2]
[406528369,1771914632785,-219.70395499,0.00013018,2]
[406528370,1771914632794,-721.96201828,0.00013018,2]
[406528371,1771914632802,-500.0,0.00013018,2]
[406528372,1771914632811,-721.96201828,0.00013018,2]
[406528373,1771914632820,-500.0,0.00013018,2]
[406528374,1771914632829,-721.96201828,0.00013018,2]
[406528375,1771914632837,-721.96201828,0.00013018,2]
[406528376,1771914632847,-500.0,0.00013018,2]
[406528377,1771914632856,-721.96201828,0.00013018,2]
[406528378,1771914632864,-721.96201828,0.00013018,2]
[406528379,1771914632873,-721.96201828,0.00013018,2]
[406528380,1771914632882,-721.96201828,0.00013018,2]
[406528381,1771914632891,-500.0,0.00013018,2]
[406528382,1771914632900,-721.96201828,0.00013018,2]
[406528383,1771914632909,-721.96201828,0.00013018,2]
[406528384,1771914632918,-500.49069894,0.00013018,2]
[406528385,1771914632927,-721.96201828,0.00013018,2]
[406528386,1771914632936,-721.96201828,0.00013018,2]
[406528387,1771914632946,-721.96201828,0.00013018,2]
[406528388,1771914632955,-721.96201828,0.00013018,2]
[406528389,1771914632964,-721.96201828,0.00013018,2]
[406528390,1771914632973,-721.96201828,0.00013018,2]
[406528391,1771914632983,-721.96201828,0.00013018,2]
[406528392,1771914632993,-721.96201828,0.00013018,2]
[406528393,1771914633002,-721.96201828,0.00013018,2]
[406528394,1771914633011,-721.96201828,0.00013018,2]
[406528395,1771914633020,-721.96201828,0.00013018,2]
[406528396,1771914633029,-721.96201828,0.00013018,2]
[406528397,1771914633039,-721.96201828,0.00013018,2]
[406528398,1771914633048,-721.96201828,0.00013018,2]
[406528399,1771914633057,-721.96201828,0.00013018,2]
[406528400,1771914633066,-721.96201828,0.00013018,2]
[406528401,1771914633075,-721.96201828,0.00013018,2]
[406528402,1771914633084,-721.96201828,0.00013018,2]
[406528403,1771914633093,-721.96201828,0.00013018,2]
[406528404,1771914633102,-721.96201828,0.00013018,2]
[406528405,1771914633112,-721.96201828,0.00013018,2]
[406528406,1771914633120,-721.96201828,0.00013018,2]
[406528407,1771914633130,-721.96201828,0.00013018,2]
[406528408,1771914633139,-721.96201828,0.00013018,2]
[406528409,1771914633148,-721.96201828,0.00013018,2]
[406528410,1771914633157,-721.96201828,0.00013018,2]
[406528411,1771914633166,-721.96201828,0.00013018,2]
[406528412,1771914633175,-721.96201828,0.00013018,2]
[406528413,1771914633184,-721.96201828,0.00013018,2]
[406528414,1771914633193,-721.96201828,0.00013018,2]
[406528415,1771914633202,-721.96201828,0.00013018,2]
[406528416,1771914633215,-500.0,0.00013018,2]
[406528417,1771914633224,-500.0,0.00013018,2]
[406528418,1771914633232,-314.11747592,0.00013018,2]
[406528419,1771914633242,-734.2569707,0.00013018,2]
[406528420,1771914633250,-734.2569707,0.00013018,2]
[406528421,1771914633260,-734.2569707,0.00013018,2]
[406528422,1771914633269,-734.2569707,0.00013018,2]
[406528423,1771914633278,-734.2569707,0.00013018,2]
[406528424,1771914633287,-734.2569707,0.00013018,2]
[406528425,1771914633296,-734.2569707,0.00013018,2]
[406528426,1771914633305,-734.2569707,0.00013018,2]
[406528427,1771914633315,-734.2569707,0.00013018,2]
[406528428,1771914633324,-734.2569707,0.00013018,2]
[406528429,1771914633333,-734.2569707,0.00013018,2]
[406528430,1771914633342,-734.2569707,0.00013018,2]
[406528431,1771914633351,-734.2569707,0.00013018,2]
[406528432,1771914633365,-734.2569707,0.00013018,2]
[406528433,1771914633374,-734.2569707,0.00013018,2]
[406528434,1771914633383,-734.2569707,0.00013018,2]
[406528435,1771914633393,-734.2569707,0.00013018,2]
[406528436,1771914633402,-734.2569707,0.00013018,2]
[406528437,1771914633412,-734.2569707,0.00013018,2]
[406528438,1771914633420,-734.2569707,0.00013018,2]
[406528439,1771914633430,-734.2569707,0.00013018,2]